[Event "Late-Titled-Tuesday-Blitz-January-23-2024"]
[Site "Chess.com"]
[Date "2024.01.23"]
[Round "4"]
[White "Kostukov_Alex"]
[Black "ErikRonka"]
[Result "0-1"]
[WhiteElo "2302"]
[BlackElo "2488"]
[TimeControl "180+1"]
[EndTime "14:37:33 PST"]
[Termination "ErikRonka won by resignation"]

1. g3 {[%clk 0:02:53.8]} 1... d5 {[%clk 0:02:57.4]} 2. Bg2 {[%clk 0:02:53.7]}
2... Nf6 {[%clk 0:02:58.1]} 3. d3 {[%clk 0:02:54]} 3... e6 {[%clk 0:02:58.8]} 4.
e4 {[%clk 0:02:54.2]} 4... Be7 {[%clk 0:02:58.5]} 5. e5 {[%clk 0:02:53.6]} 5...
Nfd7 {[%clk 0:02:58.2]} 6. Qe2 {[%clk 0:02:53.3]} 6... b5 {[%clk 0:02:49.2]} 7.
a4 {[%clk 0:02:43]} 7... b4 {[%clk 0:02:47.8]} 8. Nf3 {[%clk 0:02:37.3]} 8...
Ba6 {[%clk 0:02:38.3]} 9. O-O {[%clk 0:02:32.4]} 9... O-O {[%clk 0:02:33.4]} 10.
h4 {[%clk 0:02:29.8]} 10... c5 {[%clk 0:02:29.8]} 11. Bf4 {[%clk 0:02:27.5]}
11... Nc6 {[%clk 0:02:29.1]} 12. Nbd2 {[%clk 0:02:22.6]} 12... Qc7 {[%clk
0:02:18.9]} 13. Rfe1 {[%clk 0:02:17]} 13... Rfc8 {[%clk 0:02:18.8]} 14. c4
{[%clk 0:02:12.5]} 14... bxc3 {[%clk 0:02:18]} 15. bxc3 {[%clk 0:02:12.8]} 15...
Rab8 {[%clk 0:02:09.3]} 16. c4 {[%clk 0:02:10]} 16... Nb4 {[%clk 0:02:06.2]} 17.
Reb1 {[%clk 0:01:52.9]} 17... Qd8 {[%clk 0:02:01.8]} 18. cxd5 {[%clk 0:01:49.2]}
18... Nxd5 {[%clk 0:01:58.9]} 19. Rxb8 {[%clk 0:01:41.9]} 19... Nxf4 {[%clk
0:01:51.8]} 20. gxf4 {[%clk 0:01:38.6]} 20... Nxb8 {[%clk 0:01:52.4]} 21. Nc4
{[%clk 0:01:35.6]} 21... Nc6 {[%clk 0:01:48.2]} 22. h5 {[%clk 0:01:28.9]} 22...
h6 {[%clk 0:01:47.5]} 23. Rc1 {[%clk 0:01:24.7]} 23... Nb4 {[%clk 0:01:44.1]}
24. Rd1 {[%clk 0:01:19.1]} 24... Qd7 {[%clk 0:01:38.8]} 25. a5 {[%clk
0:01:04.6]} 25... Rd8 {[%clk 0:01:38.3]} 26. Ne1 {[%clk 0:01:03.5]} 26... Bxc4
{[%clk 0:01:36.6]} 27. f5 {[%clk 0:00:46.1]} 27... Bd5 {[%clk 0:01:23.9]} 28. f6
{[%clk 0:00:38.1]} 28... gxf6 {[%clk 0:01:24.8]} 29. Qg4+ {[%clk 0:00:35.2]}
29... Kh7 {[%clk 0:01:18.8]} 30. exf6 {[%clk 0:00:29.2]} 30... Bxf6 {[%clk
0:01:19.7]} 31. Be4+ {[%clk 0:00:25.2]} 31... Bxe4 {[%clk 0:01:13.8]} 32. Qxe4+
{[%clk 0:00:24.9]} 32... Kh8 {[%clk 0:01:13.6]} 33. Qf4 {[%clk 0:00:21.3]} 33...
Bg5 {[%clk 0:00:52.1]} 34. Qe5+ {[%clk 0:00:21.2]} 34... f6 {[%clk 0:00:52.1]}
35. Qxc5 {[%clk 0:00:20.5]} 35... Nd5 {[%clk 0:00:49.9]} 36. Nf3 {[%clk
0:00:18.6]} 36... Rg8 {[%clk 0:00:48.9]} 37. Kf1 {[%clk 0:00:17.9]} 37... Qf7
{[%clk 0:00:45.3]} 38. Qd4 {[%clk 0:00:09.1]} 38... Qxh5 {[%clk 0:00:41.7]} 39.
Ke1 {[%clk 0:00:07.9]} 39... Qxf3 {[%clk 0:00:39.5]} 0-1

[Event "Late-Titled-Tuesday-Blitz-January-23-2024"]
[Site "Chess.com"]
[Date "2024.01.23"]
[Round "4"]
[White "Felix-Rose"]
[Black "TV27"]
[Result "1-0"]
[WhiteElo "2327"]
[BlackElo "2183"]
[TimeControl "180+1"]
[EndTime "14:37:41 PST"]
[Termination "Felix-Rose won by resignation"]

1. d4 {[%clk 0:02:59.8]} 1... f5 {[%clk 0:02:58.6]} 2. Bg5 {[%clk 0:02:58.7]}
2... h6 {[%clk 0:02:57.4]} 3. Bh4 {[%clk 0:02:58.9]} 3... g5 {[%clk 0:02:58]} 4.
e3 {[%clk 0:02:59]} 4... Nf6 {[%clk 0:02:54.6]} 5. Bg3 {[%clk 0:02:53.7]} 5...
d6 {[%clk 0:02:55]} 6. Bd3 {[%clk 0:02:46]} 6... Bg7 {[%clk 0:02:51.7]} 7. Nc3
{[%clk 0:02:44.3]} 7... O-O {[%clk 0:02:50.7]} 8. f3 {[%clk 0:02:40.3]} 8... Nc6
{[%clk 0:02:49.5]} 9. Nge2 {[%clk 0:02:33.6]} 9... e5 {[%clk 0:02:48.3]} 10. h4
{[%clk 0:02:31.1]} 10... g4 {[%clk 0:02:45.4]} 11. Qd2 {[%clk 0:02:16.4]} 11...
e4 {[%clk 0:02:42.3]} 12. fxe4 {[%clk 0:02:12.8]} 12... fxe4 {[%clk 0:02:42.2]}
13. Nxe4 {[%clk 0:02:10.8]} 13... Nxe4 {[%clk 0:02:40.2]} 14. Bxe4 {[%clk
0:02:11.2]} 14... d5 {[%clk 0:02:38.2]} 15. Bd3 {[%clk 0:02:08.9]} 15... Qe7
{[%clk 0:02:35]} 16. O-O-O {[%clk 0:02:02.6]} 16... Bd7 {[%clk 0:02:31.3]} 17.
Nf4 {[%clk 0:01:56.1]} 17... Nb4 {[%clk 0:02:25]} 18. Ng6 {[%clk 0:01:48.6]}
18... Nxd3+ {[%clk 0:02:22.1]} 19. Qxd3 {[%clk 0:01:45.3]} 19... Qe6 {[%clk
0:02:11.7]} 20. Nxf8 {[%clk 0:01:43.3]} 20... Rxf8 {[%clk 0:02:11.1]} 21. Rhf1
{[%clk 0:01:43.7]} 21... Re8 {[%clk 0:02:10.6]} 22. Bf4 {[%clk 0:01:37.2]} 22...
c6 {[%clk 0:02:09.6]} 23. c3 {[%clk 0:01:35.3]} 23... b5 {[%clk 0:02:09.2]} 24.
Rde1 {[%clk 0:01:33.4]} 24... a5 {[%clk 0:02:07.8]} 25. g3 {[%clk 0:01:31.9]}
25... a4 {[%clk 0:02:07.5]} 26. a3 {[%clk 0:01:31.7]} 26... Rf8 {[%clk
0:01:49.2]} 27. e4 {[%clk 0:01:27.9]} 27... dxe4 {[%clk 0:01:47.3]} 28. Qxe4
{[%clk 0:01:23.8]} 28... Qa2 {[%clk 0:01:46.8]} 29. Qb1 {[%clk 0:01:17.3]} 29...
Qc4 {[%clk 0:01:41]} 30. Kd2 {[%clk 0:01:07.4]} 30... Bf5 {[%clk 0:01:39.8]} 31.
Qd1 {[%clk 0:00:49.7]} 31... Qd3+ {[%clk 0:01:32.9]} 32. Kc1 {[%clk 0:00:49.9]}
32... Qb1+ {[%clk 0:01:16.2]} 33. Kd2 {[%clk 0:00:50]} 33... Qxb2+ {[%clk
0:01:16.3]} 34. Ke3 {[%clk 0:00:48.7]} 34... Re8+ {[%clk 0:01:06.8]} 35. Be5
{[%clk 0:00:47.8]} 35... Bxe5 {[%clk 0:01:06.3]} 36. dxe5 {[%clk 0:00:48.4]}
36... Rxe5+ {[%clk 0:00:57.8]} 37. Kf4 {[%clk 0:00:48.4]} 37... Rd5 {[%clk
0:00:48.9]} 38. Re8+ {[%clk 0:00:44.4]} 38... Kf7 {[%clk 0:00:46.8]} 39. Qe1
{[%clk 0:00:44.1]} 39... Qd2+ {[%clk 0:00:32]} 40. Qxd2 {[%clk 0:00:43.6]} 40...
Rxd2 {[%clk 0:00:32]} 41. Re5 {[%clk 0:00:41.6]} 41... Be6 {[%clk 0:00:28]} 42.
Ke3+ {[%clk 0:00:41.2]} 42... Ke7 {[%clk 0:00:26.1]} 43. Kxd2 {[%clk 0:00:40.8]}
43... Kd6 {[%clk 0:00:24.4]} 44. Rh5 {[%clk 0:00:39.2]} 1-0

[Event "Late-Titled-Tuesday-Blitz-January-23-2024"]
[Site "Chess.com"]
[Date "2024.01.23"]
[Round "4"]
[White "otrov-11"]
[Black "ferdipy"]
[Result "0-1"]
[WhiteElo "2479"]
[BlackElo "2324"]
[TimeControl "180+1"]
[EndTime "14:37:46 PST"]
[Termination "ferdipy won by resignation"]

1. Nf3 {[%clk 0:03:00.9]} 1... Nf6 {[%clk 0:02:59.5]} 2. g3 {[%clk 0:03:01.5]}
2... e6 {[%clk 0:02:59]} 3. Bg2 {[%clk 0:03:02.1]} 3... d5 {[%clk 0:02:59.9]} 4.
O-O {[%clk 0:03:02.4]} 4... Be7 {[%clk 0:02:58.6]} 5. d3 {[%clk 0:03:03.3]} 5...
O-O {[%clk 0:02:56.7]} 6. Nbd2 {[%clk 0:03:04.2]} 6... c5 {[%clk 0:02:54.8]} 7.
e4 {[%clk 0:03:04.9]} 7... dxe4 {[%clk 0:02:51.8]} 8. dxe4 {[%clk 0:03:05.8]}
8... Nc6 {[%clk 0:02:45.7]} 9. Re1 {[%clk 0:03:04.9]} 9... b6 {[%clk 0:02:45.6]}
10. e5 {[%clk 0:03:02.1]} 10... Nd5 {[%clk 0:02:42.4]} 11. Ne4 {[%clk
0:02:58.9]} 11... Bb7 {[%clk 0:02:40.1]} 12. c3 {[%clk 0:02:56.5]} 12... h6
{[%clk 0:02:33.2]} 13. a4 {[%clk 0:02:37.1]} 13... Qc7 {[%clk 0:02:26.9]} 14.
Ned2 {[%clk 0:02:37]} 14... Rad8 {[%clk 0:02:26.9]} 15. Qc2 {[%clk 0:02:36.7]}
15... Qb8 {[%clk 0:02:23.8]} 16. Nc4 {[%clk 0:02:33.5]} 16... a6 {[%clk
0:02:19.5]} 17. h4 {[%clk 0:02:26]} 17... b5 {[%clk 0:02:19.5]} 18. axb5 {[%clk
0:02:26.9]} 18... axb5 {[%clk 0:02:19.5]} 19. Ncd2 {[%clk 0:02:12.2]} 19... c4
{[%clk 0:02:16]} 20. Qe4 {[%clk 0:02:06.3]} 20... Rfe8 {[%clk 0:02:10.3]} 21.
Qg4 {[%clk 0:02:06.4]} 21... Bf8 {[%clk 0:02:09.5]} 22. Ne4 {[%clk 0:01:51]}
22... Nxe5 {[%clk 0:01:30.9]} 23. Nxe5 {[%clk 0:01:40.5]} 23... Qxe5 {[%clk
0:01:30.9]} 24. Bxh6 {[%clk 0:01:41.3]} 24... Qf5 {[%clk 0:01:24.8]} 25. Qe2
{[%clk 0:01:00.3]} 25... gxh6 {[%clk 0:01:22.6]} 26. Ra7 {[%clk 0:01:01]} 26...
Ba8 {[%clk 0:01:15.4]} 27. Kh2 {[%clk 0:01:01.2]} 27... Nf6 {[%clk 0:01:05]} 28.
f3 {[%clk 0:00:39.4]} 28... Nxe4 {[%clk 0:00:59.5]} 29. fxe4 {[%clk 0:00:40.3]}
29... Qg6 {[%clk 0:00:59.7]} 30. Rf1 {[%clk 0:00:37.1]} 30... Re7 {[%clk
0:00:49.8]} 31. Ra5 {[%clk 0:00:37.7]} 31... Bc6 {[%clk 0:00:47]} 32. Bf3 {[%clk
0:00:37.2]} 32... Red7 {[%clk 0:00:44]} 33. Rf2 {[%clk 0:00:36]} 33... Rd2
{[%clk 0:00:39.3]} 34. Qxd2 {[%clk 0:00:34.3]} 34... Rxd2 {[%clk 0:00:40.2]} 35.
Rxd2 {[%clk 0:00:35.1]} 35... Bxe4 {[%clk 0:00:40.7]} 36. Bd1 {[%clk 0:00:30.5]}
36... Bd3 {[%clk 0:00:36.3]} 37. Ra8 {[%clk 0:00:23.1]} 37... Kg7 {[%clk
0:00:34.9]} 38. Rg2 {[%clk 0:00:19.3]} 38... Qe4 {[%clk 0:00:33.7]} 39. Ra1
{[%clk 0:00:16.1]} 39... Bd6 {[%clk 0:00:33.7]} 40. Bh5 {[%clk 0:00:14.2]} 40...
Qxh4+ {[%clk 0:00:33.7]} 41. Kg1 {[%clk 0:00:14.4]} 41... Qxh5 {[%clk
0:00:34.1]} 0-1

[Event "Late-Titled-Tuesday-Blitz-January-23-2024"]
[Site "Chess.com"]
[Date "2024.01.23"]
[Round "4"]
[White "ContrVersia"]
[Black "maximnovik"]
[Result "1-0"]
[WhiteElo "2847"]
[BlackElo "2576"]
[TimeControl "180+1"]
[EndTime "14:37:48 PST"]
[Termination "ContrVersia won on time"]

1. c4 {[%clk 0:02:58.6]} 1... Nf6 {[%clk 0:02:58.6]} 2. Nc3 {[%clk 0:02:56.2]}
2... d5 {[%clk 0:02:57.6]} 3. cxd5 {[%clk 0:02:49.9]} 3... Nxd5 {[%clk
0:02:57.6]} 4. Nf3 {[%clk 0:02:47.7]} 4... g6 {[%clk 0:02:56.5]} 5. h4 {[%clk
0:02:47.3]} 5... Bg7 {[%clk 0:02:55]} 6. h5 {[%clk 0:02:46.3]} 6... O-O {[%clk
0:02:54.5]} 7. g3 {[%clk 0:02:43.8]} 7... c5 {[%clk 0:02:48.8]} 8. Bg2 {[%clk
0:02:42.7]} 8... Nc6 {[%clk 0:02:37.5]} 9. hxg6 {[%clk 0:02:34.2]} 9... hxg6
{[%clk 0:02:37.4]} 10. Ng5 {[%clk 0:02:27.8]} 10... e6 {[%clk 0:02:27.4]} 11. f4
{[%clk 0:02:13]} 11... Nxc3 {[%clk 0:02:06.2]} 12. bxc3 {[%clk 0:02:12.8]} 12...
e5 {[%clk 0:02:06.2]} 13. Kf2 {[%clk 0:02:06.7]} 13... Bg4 {[%clk 0:01:53.7]}
14. Rb1 {[%clk 0:01:49.5]} 14... Qc7 {[%clk 0:01:48.8]} 15. Rh4 {[%clk
0:01:38.4]} 15... Bf5 {[%clk 0:01:31.4]} 16. Qh1 {[%clk 0:01:18.1]} 16... Rfd8
{[%clk 0:01:25.2]} 17. Rxb7 {[%clk 0:01:02.2]} 17... Qxb7 {[%clk 0:01:21]} 18.
Bxc6 {[%clk 0:01:02.2]} 18... Qc7 {[%clk 0:00:55.3]} 19. Bxa8 {[%clk 0:01:01.8]}
19... exf4 {[%clk 0:00:47.4]} 20. gxf4 {[%clk 0:00:59.6]} 20... Kf8 {[%clk
0:00:39.7]} 21. Bf3 {[%clk 0:00:45.5]} 21... c4 {[%clk 0:00:38.1]} 22. e4 {[%clk
0:00:41.6]} 22... Bc8 {[%clk 0:00:35.9]} 23. Ba3+ {[%clk 0:00:39.7]} 23... Ke8
{[%clk 0:00:33]} 24. Rh8+ {[%clk 0:00:24]} 24... Bxh8 {[%clk 0:00:30.8]} 25.
Qxh8+ {[%clk 0:00:24]} 25... Kd7 {[%clk 0:00:30.8]} 26. Qf6 {[%clk 0:00:24.4]}
26... Qb6+ {[%clk 0:00:25.5]} 27. Qxb6 {[%clk 0:00:23.9]} 27... axb6 {[%clk
0:00:26]} 28. Nxf7 {[%clk 0:00:24.4]} 28... Re8 {[%clk 0:00:25.3]} 29. Ne5+
{[%clk 0:00:24.2]} 29... Ke6 {[%clk 0:00:25.3]} 30. Nxc4 {[%clk 0:00:22.9]}
30... b5 {[%clk 0:00:24.4]} 31. Nd6 {[%clk 0:00:23.1]} 31... Rh8 {[%clk
0:00:24.3]} 32. Nxc8 {[%clk 0:00:23]} 32... Rxc8 {[%clk 0:00:20.3]} 33. Bg4+
{[%clk 0:00:23.2]} 1-0

[Event "Late-Titled-Tuesday-Blitz-January-23-2024"]
[Site "Chess.com"]
[Date "2024.01.23"]
[Round "4"]
[White "Cheer_Down"]
[Black "bescmelasti"]
[Result "0-1"]
[WhiteElo "2429"]
[BlackElo "2694"]
[TimeControl "180+1"]
[EndTime "14:37:48 PST"]
[Termination "bescmelasti won on time"]

1. e4 {[%clk 0:03:00.9]} 1... e5 {[%clk 0:02:58.4]} 2. Bc4 {[%clk 0:02:59.9]}
2... Nc6 {[%clk 0:02:59.3]} 3. d3 {[%clk 0:02:57]} 3... Nf6 {[%clk 0:02:59]} 4.
Nc3 {[%clk 0:02:56.1]} 4... Na5 {[%clk 0:02:58.8]} 5. Nge2 {[%clk 0:02:52.1]}
5... Nxc4 {[%clk 0:02:58.5]} 6. dxc4 {[%clk 0:02:52.4]} 6... Bc5 {[%clk
0:02:58.2]} 7. O-O {[%clk 0:02:32.9]} 7... d6 {[%clk 0:02:57.5]} 8. Qd3 {[%clk
0:02:32.1]} 8... a5 {[%clk 0:02:56.4]} 9. Be3 {[%clk 0:02:29.6]} 9... Nd7 {[%clk
0:02:54.5]} 10. Ng3 {[%clk 0:02:20.6]} 10... O-O {[%clk 0:02:54.1]} 11. Nf5
{[%clk 0:02:19.3]} 11... Bxe3 {[%clk 0:02:46]} 12. Nxe3 {[%clk 0:02:14.8]} 12...
Nc5 {[%clk 0:02:46.1]} 13. Qd2 {[%clk 0:02:09.9]} 13... Qh4 {[%clk 0:02:42.3]}
14. f3 {[%clk 0:02:06.6]} 14... f5 {[%clk 0:02:40.1]} 15. exf5 {[%clk
0:02:01.5]} 15... Bxf5 {[%clk 0:02:40]} 16. Ncd5 {[%clk 0:02:01.8]} 16... c6
{[%clk 0:02:26.2]} 17. g3 {[%clk 0:01:37.9]} 17... Qd8 {[%clk 0:02:20.4]} 18.
Nxf5 {[%clk 0:01:35]} 18... Rxf5 {[%clk 0:02:21.3]} 19. Ne3 {[%clk 0:01:34.8]}
19... Rf6 {[%clk 0:02:18.8]} 20. Rad1 {[%clk 0:01:33.9]} 20... Qe7 {[%clk
0:02:12.4]} 21. b3 {[%clk 0:01:28.6]} 21... Raf8 {[%clk 0:02:07.8]} 22. Kg2
{[%clk 0:01:26]} 22... a4 {[%clk 0:02:02.3]} 23. b4 {[%clk 0:01:15.6]} 23... Ne6
{[%clk 0:02:02.3]} 24. h4 {[%clk 0:01:08.7]} 24... Nd4 {[%clk 0:01:57.7]} 25. f4
{[%clk 0:01:08.9]} 25... exf4 {[%clk 0:01:58.6]} 26. Ng4 {[%clk 0:01:08]} 26...
Rg6 {[%clk 0:01:38.5]} 27. Rxf4 {[%clk 0:00:47.9]} 27... Rxf4 {[%clk 0:01:35]}
28. Qxf4 {[%clk 0:00:48.1]} 28... Qe2+ {[%clk 0:01:35.3]} 29. Nf2 {[%clk
0:00:48.3]} 29... Rf6 {[%clk 0:01:23.1]} 30. Qxd4 {[%clk 0:00:46.9]} 30... Rxf2+
{[%clk 0:01:21.3]} 31. Qxf2 {[%clk 0:00:45.7]} 31... Qxd1 {[%clk 0:01:22.2]} 32.
a3 {[%clk 0:00:37]} 32... h6 {[%clk 0:01:20.3]} 33. Kh2 {[%clk 0:00:34.8]} 33...
Qc1 {[%clk 0:01:13.3]} 34. Qf5 {[%clk 0:00:33.7]} 34... Qxa3 {[%clk 0:01:09.4]}
35. Qc8+ {[%clk 0:00:33.1]} 35... Kf7 {[%clk 0:01:08.3]} 36. Qd7+ {[%clk
0:00:33]} 36... Kf6 {[%clk 0:01:08.6]} 37. Qxd6+ {[%clk 0:00:32.4]} 37... Kf5
{[%clk 0:01:09.3]} 38. Qf4+ {[%clk 0:00:26.1]} 38... Ke6 {[%clk 0:01:09]} 39.
Qg4+ {[%clk 0:00:24.1]} 39... Kd6 {[%clk 0:01:07]} 40. Qf4+ {[%clk 0:00:23.1]}
40... Kd7 {[%clk 0:01:04.2]} 41. Qf7+ {[%clk 0:00:21.9]} 41... Kc8 {[%clk
0:01:04.5]} 42. Qe8+ {[%clk 0:00:20.4]} 42... Kc7 {[%clk 0:01:04.3]} 43. Qe5+
{[%clk 0:00:20]} 43... Kd7 {[%clk 0:01:01.6]} 44. Qf5+ {[%clk 0:00:19.6]} 44...
Kd8 {[%clk 0:01:01.1]} 45. Qf8+ {[%clk 0:00:19.5]} 45... Kc7 {[%clk 0:01:01.6]}
46. Qf4+ {[%clk 0:00:18.5]} 46... Kb6 {[%clk 0:01:01.1]} 47. c5+ {[%clk
0:00:14.2]} 47... Ka7 {[%clk 0:00:59.5]} 48. Qc4 {[%clk 0:00:11.7]} 48... Qb2
{[%clk 0:00:56.6]} 0-1

[Event "Late-Titled-Tuesday-Blitz-January-23-2024"]
[Site "Chess.com"]
[Date "2024.01.23"]
[Round "4"]
[White "HanSchut"]
[Black "almaguerjm"]
[Result "0-1"]
[WhiteElo "2259"]
[BlackElo "2478"]
[TimeControl "180+1"]
[EndTime "14:37:49 PST"]
[Termination "almaguerjm won on time"]

1. e4 {[%clk 0:02:59.8]} 1... e5 {[%clk 0:02:52.4]} 2. Nf3 {[%clk 0:03:00.3]}
2... Nc6 {[%clk 0:02:52.5]} 3. Bc4 {[%clk 0:03:00.8]} 3... Nf6 {[%clk
0:02:52.5]} 4. d4 {[%clk 0:03:01.2]} 4... exd4 {[%clk 0:02:52.6]} 5. e5 {[%clk
0:03:02.1]} 5... d5 {[%clk 0:02:52.9]} 6. Bb5 {[%clk 0:03:02.1]} 6... Ne4 {[%clk
0:02:53.1]} 7. Nxd4 {[%clk 0:03:02.5]} 7... Bd7 {[%clk 0:02:53.6]} 8. Bxc6
{[%clk 0:03:02.7]} 8... bxc6 {[%clk 0:02:54]} 9. O-O {[%clk 0:03:02.2]} 9... Bc5
{[%clk 0:02:54.1]} 10. f3 {[%clk 0:03:02.9]} 10... Ng5 {[%clk 0:02:54.2]} 11.
Be3 {[%clk 0:03:03.5]} 11... Bb6 {[%clk 0:02:51.2]} 12. f4 {[%clk 0:03:02.5]}
12... Ne6 {[%clk 0:02:48.6]} 13. c3 {[%clk 0:03:02.2]} 13... c5 {[%clk
0:02:47.6]} 14. Nf3 {[%clk 0:02:43.8]} 14... Bb5 {[%clk 0:02:42.7]} 15. Re1
{[%clk 0:02:34.5]} 15... g6 {[%clk 0:02:38.6]} 16. a4 {[%clk 0:02:28.7]} 16...
d4 {[%clk 0:02:30.4]} 17. cxd4 {[%clk 0:02:19.2]} 17... cxd4 {[%clk 0:02:29.1]}
18. Bf2 {[%clk 0:02:18.7]} 18... Bc6 {[%clk 0:02:24.9]} 19. a5 {[%clk
0:02:06.7]} 19... Bc5 {[%clk 0:02:23.7]} 20. b4 {[%clk 0:01:59.8]} 20... Bxb4
{[%clk 0:02:08.8]} 21. Rf1 {[%clk 0:01:40.7]} 21... Qd5 {[%clk 0:01:30.4]} 22.
f5 {[%clk 0:01:07.3]} 22... gxf5 {[%clk 0:01:28.4]} 23. Bh4 {[%clk 0:01:07.4]}
23... Rg8 {[%clk 0:01:26.4]} 24. Nbd2 {[%clk 0:00:51.8]} 24... Qxe5 {[%clk
0:00:39.3]} 25. Re1 {[%clk 0:00:42.1]} 25... Qg7 {[%clk 0:00:38.4]} 26. g3
{[%clk 0:00:33.7]} 26... Bc3 {[%clk 0:00:29.4]} 27. Qb3 {[%clk 0:00:20.5]} 27...
Qh6 {[%clk 0:00:20.2]} 28. Rxe6+ {[%clk 0:00:13.2]} 28... fxe6 {[%clk
0:00:21.1]} 29. Re1 {[%clk 0:00:13]} 29... Bd7 {[%clk 0:00:20.8]} 30. Qb7 {[%clk
0:00:09.2]} 30... Bxd2 {[%clk 0:00:20.2]} 31. Qxa8+ {[%clk 0:00:08.1]} 31... Kf7
{[%clk 0:00:20.8]} 32. Qxa7 {[%clk 0:00:03.2]} 32... Bxe1 {[%clk 0:00:20.8]} 33.
Qxc7 {[%clk 0:00:03.1]} 33... Qe3+ {[%clk 0:00:21.1]} 34. Kg2 {[%clk 0:00:02.9]}
34... Qe2+ {[%clk 0:00:19.2]} 0-1

[Event "Late-Titled-Tuesday-Blitz-January-23-2024"]
[Site "Chess.com"]
[Date "2024.01.23"]
[Round "4"]
[White "Chessdreamer2020"]
[Black "GMG"]
[Result "0-1"]
[WhiteElo "2551"]
[BlackElo "2781"]
[TimeControl "180+1"]
[EndTime "14:37:52 PST"]
[Termination "GMG won by resignation"]

1. e4 {[%clk 0:03:00.8]} 1... c5 {[%clk 0:02:55.8]} 2. Nf3 {[%clk 0:03:00.8]}
2... e6 {[%clk 0:02:55.9]} 3. b3 {[%clk 0:03:00.7]} 3... Nc6 {[%clk 0:02:55.3]}
4. Bb5 {[%clk 0:03:00.4]} 4... Nge7 {[%clk 0:02:54.5]} 5. Bb2 {[%clk 0:03:00.7]}
5... a6 {[%clk 0:02:54.8]} 6. Bxc6 {[%clk 0:03:01]} 6... Nxc6 {[%clk 0:02:55.7]}
7. O-O {[%clk 0:03:01.7]} 7... d6 {[%clk 0:02:48.3]} 8. d4 {[%clk 0:03:01.5]}
8... cxd4 {[%clk 0:02:45.3]} 9. Nxd4 {[%clk 0:03:02.4]} 9... Bd7 {[%clk
0:02:42.7]} 10. Re1 {[%clk 0:03:02.7]} 10... Qg5 {[%clk 0:02:39]} 11. c4 {[%clk
0:02:57.3]} 11... Be7 {[%clk 0:02:36.8]} 12. Nf3 {[%clk 0:02:52]} 12... Qg6
{[%clk 0:02:32.7]} 13. Nc3 {[%clk 0:02:48.2]} 13... Rd8 {[%clk 0:02:31.8]} 14.
Na4 {[%clk 0:02:39.7]} 14... e5 {[%clk 0:02:21.5]} 15. Kh1 {[%clk 0:02:31]}
15... f5 {[%clk 0:02:11.1]} 16. exf5 {[%clk 0:02:29.3]} 16... Bxf5 {[%clk
0:02:12]} 17. Nb6 {[%clk 0:02:27.1]} 17... O-O {[%clk 0:02:07.9]} 18. Nd5 {[%clk
0:02:26.5]} 18... Bg4 {[%clk 0:01:45.3]} 19. Re3 {[%clk 0:01:48.9]} 19... Bg5
{[%clk 0:01:41.7]} 20. Rc3 {[%clk 0:01:19.7]} 20... e4 {[%clk 0:01:31.7]} 21. h3
{[%clk 0:01:15.5]} 21... Bh5 {[%clk 0:01:25.5]} 22. g4 {[%clk 0:01:14.2]} 22...
exf3 {[%clk 0:01:21.2]} 23. Rxf3 {[%clk 0:01:13.1]} 23... Qe4 {[%clk 0:01:18]}
24. Kg2 {[%clk 0:01:05.2]} 24... Bg6 {[%clk 0:01:17.3]} 25. Nc3 {[%clk
0:00:58.8]} 25... Qxf3+ {[%clk 0:01:13.9]} 26. Qxf3 {[%clk 0:00:59.7]} 26...
Rxf3 {[%clk 0:01:14.2]} 27. Kxf3 {[%clk 0:01:00.6]} 27... Rf8+ {[%clk
0:01:10.6]} 28. Kg2 {[%clk 0:01:00.7]} 28... Bh4 {[%clk 0:01:10.9]} 29. f3
{[%clk 0:00:55.5]} 29... Ne5 {[%clk 0:01:10.6]} 30. Rf1 {[%clk 0:00:55.2]} 30...
Bd3 {[%clk 0:01:10.2]} 31. Rd1 {[%clk 0:00:54.1]} 31... Rxf3 {[%clk 0:01:08.5]}
32. Rd2 {[%clk 0:00:51.5]} 32... Rg3+ {[%clk 0:01:06.9]} 33. Kh1 {[%clk
0:00:50.2]} 33... Nf3 {[%clk 0:01:02.8]} 34. Rd1 {[%clk 0:00:50.4]} 34... Rxh3+
{[%clk 0:00:51.6]} 35. Kg2 {[%clk 0:00:50.7]} 35... Rg3+ {[%clk 0:00:51.9]} 36.
Kh1 {[%clk 0:00:51.1]} 36... Rxg4 {[%clk 0:00:49.5]} 37. Nd5 {[%clk 0:00:50.4]}
37... Be4 {[%clk 0:00:48.1]} 38. Ba3 {[%clk 0:00:36.7]} 38... Bxd5 {[%clk
0:00:46.3]} 39. cxd5 {[%clk 0:00:35.7]} 39... Rg6 {[%clk 0:00:43.8]} 40. Rf1
{[%clk 0:00:29.2]} 40... Bf2 {[%clk 0:00:38.8]} 41. Bxd6 {[%clk 0:00:22.3]}
41... Rxd6 {[%clk 0:00:35.5]} 42. Rxf2 {[%clk 0:00:22.6]} 42... Nd4 {[%clk
0:00:36.1]} 43. Rd2 {[%clk 0:00:22.4]} 43... Rxd5 {[%clk 0:00:36.1]} 44. Kg2
{[%clk 0:00:22.9]} 44... Kf7 {[%clk 0:00:35.9]} 45. Kf2 {[%clk 0:00:22.8]} 45...
Ke6 {[%clk 0:00:36.1]} 46. Ke3 {[%clk 0:00:23.1]} 46... Nf5+ {[%clk 0:00:36.2]}
47. Ke2 {[%clk 0:00:23.3]} 47... Rxd2+ {[%clk 0:00:37.1]} 48. Kxd2 {[%clk
0:00:24.2]} 48... h5 {[%clk 0:00:37.6]} 0-1

[Event "Late-Titled-Tuesday-Blitz-January-23-2024"]
[Site "Chess.com"]
[Date "2024.01.23"]
[Round "4"]
[White "Squirlolz"]
[Black "Teidi96"]
[Result "1-0"]
[WhiteElo "2575"]
[BlackElo "2412"]
[TimeControl "180+1"]
[EndTime "14:37:52 PST"]
[Termination "Squirlolz won by checkmate"]

1. Nc3 {[%clk 0:03:00.9]} 1... d5 {[%clk 0:02:55.4]} 2. e4 {[%clk 0:02:59]} 2...
dxe4 {[%clk 0:02:55.4]} 3. Nxe4 {[%clk 0:02:59.9]} 3... e5 {[%clk 0:02:55.5]} 4.
Nf3 {[%clk 0:02:58.6]} 4... Nc6 {[%clk 0:02:54.7]} 5. Bc4 {[%clk 0:02:57.8]}
5... Be7 {[%clk 0:02:52.5]} 6. O-O {[%clk 0:02:57.4]} 6... Nf6 {[%clk
0:02:51.2]} 7. Neg5 {[%clk 0:02:56.9]} 7... O-O {[%clk 0:02:51.1]} 8. Nxf7
{[%clk 0:02:57.2]} 8... Rxf7 {[%clk 0:02:51.1]} 9. Ng5 {[%clk 0:02:57.5]} 9...
Nd5 {[%clk 0:02:49.3]} 10. Nxf7 {[%clk 0:02:54.7]} 10... Kxf7 {[%clk 0:02:50.2]}
11. Qf3+ {[%clk 0:02:42.7]} 11... Ke6 {[%clk 0:02:50]} 12. d3 {[%clk 0:01:52.8]}
12... Bf6 {[%clk 0:02:37.6]} 13. Bd2 {[%clk 0:01:40.8]} 13... Ne7 {[%clk
0:02:25.5]} 14. Rfe1 {[%clk 0:01:25.8]} 14... Kf7 {[%clk 0:02:23.5]} 15. g4
{[%clk 0:01:11.4]} 15... h6 {[%clk 0:02:20.5]} 16. h4 {[%clk 0:01:11.2]} 16...
g5 {[%clk 0:01:53.2]} 17. hxg5 {[%clk 0:01:09.1]} 17... hxg5 {[%clk 0:01:54.1]}
18. Bxg5 {[%clk 0:01:07.6]} 18... Kg6 {[%clk 0:01:49.8]} 19. Bxf6 {[%clk
0:00:48.9]} 19... Nxf6 {[%clk 0:01:39.9]} 20. g5 {[%clk 0:00:32.6]} 20... Ng4
{[%clk 0:01:37.9]} 21. Re4 {[%clk 0:00:18.4]} 21... Kxg5 {[%clk 0:01:29.5]} 22.
Rae1 {[%clk 0:00:18.5]} 22... Ng6 {[%clk 0:01:23.6]} 23. Qg3 {[%clk 0:00:13.7]}
23... Kh5 {[%clk 0:00:27.2]} 24. Bf7 {[%clk 0:00:13.3]} 24... Bf5 {[%clk
0:00:20.3]} 25. f3 {[%clk 0:00:12.7]} 25... Bxe4 {[%clk 0:00:11.8]} 26. Qxg4+
{[%clk 0:00:12.3]} 26... Kh6 {[%clk 0:00:12.2]} 27. Rxe4 {[%clk 0:00:11.8]}
27... Qf6 {[%clk 0:00:09.2]} 28. Qh3+ {[%clk 0:00:08.2]} 28... Kg7 {[%clk
0:00:09.5]} 29. Bxg6 {[%clk 0:00:08.5]} 29... Kxg6 {[%clk 0:00:08.4]} 30. Rg4+
{[%clk 0:00:09.1]} 30... Kf7 {[%clk 0:00:06.4]} 31. Qh7+ {[%clk 0:00:09.7]}
31... Kf8 {[%clk 0:00:01.9]} 32. Rg8# {[%clk 0:00:09.7]} 1-0